[Event "1st Chessable Sunway Formentera 2022"]
[Site "Formentera Punta Prima"]
[Date "2022.05.04"]
[Round "6"]
[White "Soham Das"]
[Black "Cuenca Jimenez, Jose Fernando"]
[Result "0-1"]
[ECO "A07"]
[WhiteElo "2266"]
[BlackElo "2551"]
[Annotator "TA"]
[PlyCount "80"]
[EventDate "2022.05.05"]
[EventType "swiss"]
[EventCountry "ESP"]
[SourceTitle "playchess.com"]
[Source "ChessBase"]
[SourceQuality "1"]
[TimeControl "40/5400+30:1800+30"]

{[%evp 16,80,13,22,11,0,0,0,0,0,14,6,12,0,0,0,0,0,0,0,0,-58,36,18,30,20,17,22,25,22,25,0,11,8,41,0,4,-5,-27,-12,-20,-50,-19,-95,-118,-84,-82,-96,-92,-100,-98,-91,-86,-517,-516,-493,-376,-411,-422,-565,-513,-1459,-688,-731,-723,-1103,-329]} 1. b3 {[%emt 0:09:28]} d5 {[%emt 0:00:43]} 2. Bb2 {[%emt 0:00:06]} Bf5 {[%emt 0:00:15]} 3. Nf3 {[%emt 0:00:38]} e6 {[%emt 0:01:13]} 4. g3 {[%emt 0:11:01]} Nf6 {[%emt 0:02:03]} 5. Bg2 {[%emt 0:00:23]} h6 {[%emt 0:01:27]} 6. O-O {[%emt 0:01:02]} Be7 {[%emt 0:00:07]} 7. d3 {[%emt 0:00:21]} O-O {[%emt 0:00:17]} 8. Nbd2 {[%emt 0:00:05]} a5 {[%emt 0:00:36]} 9. a4 {[%emt 0:07:43]} Nbd7 {[%emt 0:05:46] A07: Réti Opening: New York and Capablanca Systems.} 10. e3 {[%emt 0:05:09][%cal Be2e3,Be3e4][%mdl 32]} c6 {[%emt 0:02:12]} 11. Qe2 {[%emt 0:01:57]} Qb6 $5 {[%emt 0:03:58][%mdl 4] [#] The position is equal. Exploring less charted territory.} 12. e4 $146 {[%emt 0:06:35]} ({Predecessor:} 12. Kh1 Rfd8 13. Nh4 Bh7 14. f4 Ne8 15. Nhf3 Bf6 16. Ne5 Qc7 17. Ndf3 Be7 18. Ng4 Nd6 19. Nfe5 Nf8 20. Nf2 Nf5 21. e4 {½-½ (21) Keene,R-Hort,V Hastings 1967}) 12... Bg4 {[%emt 0:01:39][%cal Bf5g4,Bg4h5,Bh5g6,Bg6h7][%mdl 32]} 13. h3 {[%emt 0:02:51]} Bh5 {[%emt 0:00:22]} 14. Rae1 {[%emt 0:06:29]} Bb4 {[%emt 0:08:22]} 15. e5 {[%emt 0:11:45]} Ne8 {[%emt 0:00:27]} 16. g4 {[%emt 0:01:42]} Bg6 {[%emt 0:00:18]} 17. Kh1 {[%emt 0:00:31]} Bh7 {[%emt 0:11:00]} 18. Nd4 {[%emt 0:05:22] [#]} (18. Ra1 $11) 18... Bc5 {[%emt 0:14:56]} ({Black should try} 18... Nxe5 $1 $15 19. f4 (19. Nxe6 Nxd3) 19... Nd7) 19. Qe3 $14 {[%emt 0:02:35]} Nc7 {[%emt 0:03:06]} 20. f4 {[%emt 0:00:22]} Rae8 {[%emt 0:00:57]} 21. N2f3 {[%emt 0:01:58]} Bb4 {[%emt 0:03:38]} 22. Rd1 {[%emt 0:01:52]} Be7 {[%emt 0:02:38]} 23. Rde1 {[%emt 0:01:58]} c5 {[%emt 0:12:26]} 24. Ne2 {[%emt 0:04:23]} c4 {[%emt 0:00:51]} (24... d4 $5 {[%cal Rd4e3]} 25. Qc1 Nd5 $11) 25. Ned4 {[%emt 0:07:34]} (25. Bd4 $5 {[%cal Rd4b6]} Qa6 26. bxc4 $14) 25... Bc5 {[%emt 0:06:51]} 26. Bc3 {[%emt 0:01:39]} cxd3 {[%emt 0:01:04]} 27. cxd3 {[%emt 0:00:03]} Na6 {[%emt 0:01:35]} 28. Qd2 {[%emt 0:04:25]} Bb4 $1 {[%emt 0:01:16]} 29. Rc1 {[%emt 0:01:56] [#]} (29. f5 $11 {remains equal.}) 29... Nac5 $1 $17 {[%emt 0:03:43]} 30. Bxb4 {[%emt 0:01:56]} axb4 {[%emt 0:00:41]} 31. f5 {[%emt 0:01:39]} exf5 {[%emt 0:00:08]} 32. gxf5 {[%emt 0:00:09]} Nxe5 {[%emt 0:00:18]} 33. Nxe5 {[%emt 0:00:18]} Rxe5 {[%emt 0:00:01]} 34. f6 $2 {[%emt 0:00:29][%mdl 8192] Loses the game.} (34. Qc2 $17 {is more resistant.} Nd7 35. Qf2) 34... Nxd3 $19 {[%emt 0:01:33]} 35. Nf3 {[%emt 0:00:58]} Re3 {[%emt 0:01:58]} 36. a5 {[%emt 0:00:36]} Qe6 {[%emt 0:01:46]} 37. fxg7 {[%emt 0:00:31] Black is clearly winning.} Re8 {[%emt 0:00:58] White must now prevent ...Re2.} 38. Nd4 {[%emt 0:00:28] Inhibits Re2.} (38. Rc7 $142 Re2 39. Nd4 Rxd2 40. Nxe6 fxe6 41. Rxb7) 38... Qe5 {[%emt 0:01:00]} (38... Rxh3+ $142 39. Kg1 Qg4) 39. Nf3 {[%emt 0:00:32]} Qg3 {[%emt 0:05:59] ( -> ...Re2)} 40. Rc8 {[%emt 0:00:00] [#]} Nf4 $1 {[%emt 0:00:00][%mdl 512] Weighted Error Value: White=0.65/Black=0.27 (precise)} 0-1

[Event "1st Chessable Sunway Formentera 2022"]
[Site "Formentera Punta Prima"]
[Date "2022.05.04"]
[Round "6"]
[White "Real, Thibault"]
[Black "Bernard, Jacques"]
[Result "1-0"]
[ECO "B43"]
[WhiteElo "2262"]
[BlackElo "2122"]
[Annotator "TA"]
[PlyCount "67"]
[EventDate "2022.05.05"]
[EventType "swiss"]
[EventCountry "ESP"]
[SourceTitle "playchess.com"]
[Source "ChessBase"]
[SourceQuality "1"]
[TimeControl "40/5400+30:1800+30"]

{[%evp 11,67,4,0,-6,0,-8,-22,-31,4,0,-6,-64,37,39,54,41,50,38,124,119,163,158,187,195,204,165,159,166,153,115,162,159,148,140,150,140,200,189,165,158,193,202,212,124,188,181,171,36,24,26,240,232,543,542,29997,29998,29998,29999]} 1. e4 {[%emt 0:00:03]} c5 {[%emt 0:00:10]} 2. Nf3 {[%emt 0:00:03]} e6 {[%emt 0:01:19]} 3. d4 {[%emt 0:00:06]} cxd4 {[%emt 0:00:04]} 4. Nxd4 {[%emt 0:00:05]} a6 {[%emt 0:06:02]} 5. Nc3 {[%emt 0:02:54]} Qc7 {[%emt 0:02:33]} 6. Be3 {[%emt 0:00:08]} Nf6 {[%emt 0:01:41][%cal Of8a3] 6...Bb4 deserves study.} 7. Qf3 {[%emt 0:25:05] B43: Sicilian: Kan Variation: 5 Nc3.} Bb4 {[%emt 0:10:46]} 8. Nde2 {[%emt 0:00:22]} Nc6 {[%emt 0:22:19]} 9. O-O-O {[%emt 0:02:16] The position is equal.} O-O {[%emt 0:06:27] [#]} 10. Qg3 $146 {[%emt 0:18:09]} ({Predecessor:} 10. Bf4 Ne5 11. Qg3 d6 12. Bg5 Ne8 13. Kb1 f6 14. Bc1 f5 15. exf5 Rxf5 16. Nd4 {1-0 (27) Vavulin,M (2575)-Uraev,I (2304) Moscow 2018}) 10... Qxg3 {[%emt 0:02:41]} 11. hxg3 {[%emt 0:10:04]} (11. Nxg3 $11 b5 12. a3 Bxc3 13. bxc3) 11... b5 {[%emt 0:08:04]} (11... Ng4 $15) 12. f3 $36 {[%emt 0:00:20][%mdl 2048] White has some pressure.} Rd8 {[%emt 0:11:44]} 13. g4 {[%emt 0:01:44][%cal Bg3g4,Bg4g5][%mdl 32]} d6 {[%emt 0:04:15]} 14. Bb6 {[%emt 0:05:23]} Re8 {[%emt 0:02:30]} (14... Rd7 $14) 15. Bc7 {[%emt 0:01:02]} d5 {[%emt 0:00:14]} 16. g5 {[%emt 0:00:45]} (16. exd5 $6 Nxd5 17. Nxd5 exd5 $16) 16... d4 {[%emt 0:08:37]} 17. Nxd4 {[%emt 0:04:07]} (17. gxf6 $6 dxc3 18. fxg7 (18. bxc3 Ba3+ 19. Kb1 gxf6 $14) (18. Nxc3 gxf6 19. a3 Bc5 $14) 18... cxb2+ 19. Kxb2 Be7 $16) 17... Nxd4 {[%emt 0:00:10]} 18. Rxd4 {[%emt 0:00:10]} Bc5 {[%emt 0:01:47] [#]} 19. Rd3 {[%emt 0:00:20] White is more active.} ({Stronger than} 19. gxf6 Bxd4 20. fxg7 Ra7 $15) 19... Nd7 {[%emt 0:00:31]} 20. Be2 {[%emt 0:05:38]} Nf8 {[%emt 0:02:03]} (20... Be7 $16 {might work better.}) 21. Rhd1 {[%emt 0:00:33]} Bb7 {[%emt 0:00:47]} 22. Bd6 {[%emt 0:02:01]} Bf2 {[%emt 0:00:32]} 23. b4 {[%emt 0:03:02]} Rac8 {[%emt 0:01:13]} (23... e5 $16) 24. Kb2 {[%emt 0:03:05]} Bc6 {[%emt 0:01:45]} 25. Bh2 {[%emt 0:02:23]} e5 {[%emt 0:01:39]} 26. Nd5 {[%emt 0:01:54]} Bh4 {[%emt 0:01:05]} 27. Ne3 {[%emt 0:02:57]} ({White should play} 27. a4 $18) 27... g6 {[%emt 0:01:33]} (27... Bxg5 $16 28. Nf5 Re6) 28. Ng4 {[%emt 0:00:33] aiming for Nf6+.} Bxg5 {[%emt 0:00:18]} 29. Bxe5 {[%emt 0:02:23]} (29. Rd6 $18) 29... f5 {[%emt 0:00:18]} 30. Bf6 {[%emt 0:01:11][%cal Be5f6,Bf6g5,Bg5f6][%mdl 32]} fxe4 $2 {[%emt 0:01:16] Black cannot hold the game after this.} 31. Rd6 {[%emt 0:03:32]} ({Weaker is} 31. Bxg5 exd3 32. Bxd3 Kf7 $11) 31... exf3 $2 {[%emt 0:00:40]} (31... h5 {is a better chance.}) 32. Bxg5 $18 {[%emt 0:00:22] White wants to mate with Nh6+.} ({Less strong is} 32. Bxf3 Bxf3 33. gxf3 Bf4 $16) 32... Rxe2 {[%emt 0:00:19] [#]} 33. Nh6+ $1 {[%emt 0:00:17]} Kg7 {[%emt 0:00:16]} 34. Bf6+ {[%emt 0:00:04] Weighted Error Value: White=0.17 (very precise) /Black=0.77} 1-0

[Event "1st Chessable Sunway Formentera 2022"]
[Site "Formentera Punta Prima"]
[Date "2022.05.04"]
[Round "6"]
[White "Munoz Suarez, Luis Alberto"]
[Black "Romanishin, Oleg M"]
[Result "1/2-1/2"]
[ECO "C29"]
[WhiteElo "1907"]
[BlackElo "2400"]
[Annotator "TA"]
[PlyCount "116"]
[EventDate "2022.05.05"]
[EventType "swiss"]
[EventCountry "ESP"]
[SourceTitle "playchess.com"]
[Source "ChessBase"]
[SourceQuality "1"]
[TimeControl "40/5400+30:1800+30"]

{[%evp 12,116,0,0,2,0,-2,-38,-8,-15,35,-35,0,0,36,42,45,40,43,10,10,10,119,7,80,29,69,0,0,0,64,0,108,14,57,57,55,60,54,51,55,-22,-19,-25,-15,-11,-16,-14,-19,-21,-16,-42,-22,-15,-11,-23,-23,-78,-81,-81,-35,-102,0,0,0,0,0,0,0,0,0,0,0,0,0,0,0,-20,-16,-12,0,0,0,0,8,8,8,8,8,8,9,9,9,-8,-8,-8,-8,-8,-8,-8,-8,-8,0,-8,0,-8,0]} 1. e4 {[%emt 0:00:03]} e5 {[%emt 0:00:07]} 2. f4 {[%emt 0:00:06]} exf4 {[%emt 0:00:06]} 3. Bc4 {[%emt 0:00:08]} d5 {[%emt 0:00:10]} 4. exd5 {[%emt 0:01:51]} Nf6 {[%emt 0:00:08]} 5. Nc3 {[%emt 0:00:44]} Be7 {[%emt 0:06:41]} 6. Nf3 {[%emt 0:06:26]} O-O {[%emt 0:00:08]} 7. O-O {[%emt 0:02:04]} Nbd7 {[%emt 0:12:06] C29: Vienna Game: 2...Nf6 3 f4.} 8. d3 {[%emt 0:10:09] [#]} Bd6 $146 {[%emt 0:03:25]} ({Predecessor:} 8... Bc5+ 9. d4 Bd6 10. Bb3 a6 11. Qd3 Re8 12. Bd2 b5 13. Rae1 Bb7 14. Rxe8+ Qxe8 15. Re1 {½-½ (45) Oehne,T (1738)-Kusnetsov,M (2085) Moehnesee 2010}) 9. Ne2 {[%emt 0:24:24]} Nb6 {[%emt 0:18:28] Black is slightly better.} 10. Nxf4 {[%emt 0:01:48]} Re8 {[%emt 0:06:50]} (10... c6 $11) 11. Kh1 {[%emt 0:08:26]} (11. Bb3 $1 $14) 11... Ng4 {[%emt 0:08:20]} 12. Bb3 {[%emt 0:20:53]} Ne3 {[%emt 0:04:45]} 13. Bxe3 {[%emt 0:01:54]} Rxe3 {[%emt 0:00:05]} 14. Ne2 {[%emt 0:04:01]} Bg4 {[%emt 0:03:40]} 15. Ned4 {[%emt 0:01:15]} (15. Qd2 $5 {[%cal Rd2e3]} Qe7 16. Ned4 $14) 15... Qf6 {[%emt 0:06:33]} 16. Qd2 {[%emt 0:01:59]} Qf4 {[%emt 0:07:22] [#]} (16... Qh6 $11) 17. Qf2 {[%emt 0:01:07]} ({White has to play} 17. g3 $1 $16 {[%cal Rg3f4]} Qh6 18. Nh4) 17... Bc5 {[%emt 0:09:16] [#]} (17... Rae8 $11) 18. c3 {[%emt 0:02:04]} ({Better is} 18. Ne2 $1 $16 {[%cal Re2f4]} Qh6 19. d4) 18... Rf8 {[%emt 0:01:51]} 19. Qh4 {[%emt 0:01:43]} (19. Qd2 $14) 19... Be7 $11 {[%emt 0:00:58]} 20. Qf2 {[%emt 0:01:40]} Bd6 {[%emt 0:00:25]} (20... Bc5 $1 $11) 21. Qh4 {[%emt 0:00:57]} (21. g3 $14 Qh6 22. Nh4) 21... h6 {[%emt 0:03:48]} (21... Be7 $1 $11 {keeps the balance.} 22. Qf2 Bd6) 22. h3 {[%emt 0:01:24]} (22. Nd2 $16 Qe5 23. Rfe1) 22... Bd7 {[%emt 0:00:31] A strong pair of Bishops.} (22... Bxf3 $5 23. Qxf4 Bxf4 $11) 23. Qxf4 {[%emt 0:00:20]} Bxf4 {[%emt 0:00:03]} 24. Rae1 {[%emt 0:01:23]} Rfe8 {[%emt 0:01:01] Inhibits Ne6.} 25. Rxe3 {[%emt 0:02:05]} Rxe3 {[%emt 0:00:06]} 26. Nh4 {[%emt 0:00:38]} (26. Rd1 $14) 26... Bd6 {[%emt 0:00:40]} 27. Nhf5 {[%emt 0:00:49]} Rxd3 {[%emt 0:00:33]} 28. Nxd6 {[%emt 0:00:32]} cxd6 {[%emt 0:00:05]} 29. Rf2 {[%emt 0:01:21]} Re3 {[%emt 0:00:37]} 30. Kg1 {[%emt 0:00:59]} Re1+ {[%emt 0:00:48]} 31. Kh2 {[%emt 0:00:27]} Re5 {[%emt 0:00:34]} 32. Rd2 {[%emt 0:00:08]} Kf8 {[%emt 0:00:32]} ({Don't take} 32... Nxd5 33. Nf3 Ne3 34. Nxe5 Nf1+ 35. Kg1 Nxd2 36. Nxd7 $16) 33. Kg3 {[%emt 0:00:45]} g6 {[%emt 0:00:50]} ({But not} 33... Nxd5 34. Nf3 Nf6 35. Nxe5 dxe5 36. Bd5 $16) 34. Re2 {[%emt 0:00:41]} (34. Nf3 $11 {remains equal.} Re8 35. Rd4) 34... Rxe2 $17 {[%emt 0:00:29]} 35. Nxe2 {[%emt 0:00:06][%mdl 4096] Endgame KBN-KBN} Ke7 {[%emt 0:00:23]} (35... Bb5 $17 36. Nf4 a5) 36. Kf4 {[%emt 0:00:24]} (36. Nd4 $15) 36... g5+ {[%emt 0:01:00]} ({Black should play} 36... a5 $17) 37. Ke3 $11 {[%emt 0:00:31] The position is equal.} f5 {[%emt 0:00:31]} 38. Kd4 {[%emt 0:00:32]} f4 {[%emt 0:00:53]} 39. Ng1 {[%emt 0:01:00]} Bf5 {[%emt 0:00:31]} 40. Bd1 {[%emt 0:00:00]} Nd7 {[%emt 0:00:00]} 41. c4 {[%emt 0:05:01]} Nf6 {[%emt 0:03:13]} 42. b4 {[%emt 0:04:50]} h5 {[%emt 0:00:37]} 43. c5 {[%emt 0:05:48]} Bb1 {[%emt 0:09:22]} 44. a4 {[%emt 0:01:51][%cal Oh3h4]} Ba2 {[%emt 0:05:03]} 45. Bf3 {[%emt 0:00:19]} Bb3 {[%emt 0:08:18]} 46. a5 {[%emt 0:00:39]} ({Much weaker is} 46. c6 bxc6 47. dxc6 Bxa4 $17) 46... g4 {[%emt 0:00:07]} 47. Be4 {[%emt 0:03:05]} Bd1 {[%emt 0:00:06]} 48. hxg4 {[%emt 0:10:35]} hxg4 {[%emt 0:00:05]} 49. Bf5 {[%emt 0:02:10]} f3 {[%emt 0:02:58]} 50. gxf3 {[%emt 0:01:07]} Bxf3 {[%emt 0:00:41]} 51. Nxf3 {[%emt 0:01:11]} gxf3 {[%emt 0:00:06] KB-KN} 52. b5 {[%emt 0:01:06]} f2 {[%emt 0:00:38]} 53. Bh3 {[%emt 0:00:32]} dxc5+ {[%emt 0:01:50]} 54. Kxc5 {[%emt 0:00:06]} Ne4+ {[%emt 0:00:30]} 55. Kd4 {[%emt 0:00:05]} Nd2 {[%emt 0:00:30] ( -> ...Kd6)} 56. Kc5 {[%emt 0:00:05]} Ne4+ {[%emt 0:08:13]} 57. Kd4 {[%emt 0:00:30]} Nd6 {[%emt 0:00:05]} 58. Kc5 {[%emt 0:00:30]} Ne4+ {[%emt 0:00:05] Weighted Error Value: White=0.21 (precise) /Black=0.22 (precise)} 1/2-1/2

[Event "1st Chessable Sunway Formentera 2022"]
[Site "Formentera Punta Prima"]
[Date "2022.05.04"]
[Round "6"]
[White "Buivys, Martynas"]
[Black "Grutter, Tim"]
[Result "1/2-1/2"]
[ECO "A36"]
[WhiteElo "1806"]
[BlackElo "2241"]
[Annotator "TA"]
[PlyCount "96"]
[EventDate "2022.05.05"]
[EventType "swiss"]
[EventCountry "ESP"]
[SourceTitle "playchess.com"]
[Source "ChessBase"]
[SourceQuality "1"]
[TimeControl "40/5400+30:1800+30"]

{[%evp 15,96,0,27,17,19,8,6,8,30,15,20,11,12,20,24,37,45,18,36,21,25,33,40,34,32,32,48,33,64,33,104,38,55,5,34,33,28,32,20,26,27,12,17,17,20,16,14,8,64,6,6,6,0,0,0,0,10,0,0,0,75,69,296,306,1115,1177,1206,1170,1846,1604,1883,1883,1483,1208,1008,46,50,54,40,0,8,0,0]} 1. c4 {[%emt 0:02:22]} Nf6 {[%emt 0:00:04]} 2. Nc3 {[%emt 0:00:05]} g6 {[%emt 0:00:05]} 3. g3 {[%emt 0:00:04]} Bg7 {[%emt 0:00:04]} 4. Bg2 {[%emt 0:00:06]} O-O {[%emt 0:00:09]} 5. e4 {[%emt 0:00:17]} d6 {[%emt 0:00:05]} 6. Nge2 {[%emt 0:00:05]} c5 {[%emt 0:00:06]} 7. O-O {[%emt 0:00:33]} Nc6 {[%emt 0:00:04]} 8. d3 {[%emt 0:00:43]} Bg4 {[%emt 0:00:18]} 9. f3 {[%emt 0:00:26] A36: Symmetrical English vs ...g6: 4 Bg2 Bg7.} Bd7 {[%emt 0:00:05]} 10. Be3 {[%emt 0:00:26]} a6 {[%emt 0:00:32]} 11. Qd2 {[%emt 0:02:36]} Ne8 {[%emt 0:00:18]} 12. d4 {[%emt 0:01:56]} cxd4 {[%emt 0:05:46]} 13. Nxd4 {[%emt 0:00:05]} Nxd4 {[%emt 0:15:35]} 14. Bxd4 {[%emt 0:00:03]} b5 {[%emt 0:01:47]} 15. cxb5 {[%emt 0:10:41]} axb5 {[%emt 0:00:14] [#]} 16. Bxg7 $146 {[%emt 0:02:59]} ({Predecessor:} 16. Rfd1 Bxd4+ 17. Qxd4 Nc7 18. e5 Ne6 19. Qe3 dxe5 20. Nxb5 Qb8 21. Rxd7 Qxb5 22. Rd2 {0-1 (43) Pap,G (2533)-Sjugirov,S (2622) Moscow 2012}) 16... Nxg7 {[%emt 0:00:52]} 17. Nd5 {[%emt 0:06:50]} Be6 {[%emt 0:14:18]} 18. Nb4 {[%emt 0:07:00]} Qa5 {[%emt 0:01:45]} 19. a3 {[%emt 0:01:24]} Bc4 {[%emt 0:02:09]} 20. Rf2 {[%emt 0:13:16]} Qb6 {[%emt 0:14:54]} 21. Re1 {[%emt 0:03:49]} e5 {[%emt 0:08:22]} 22. f4 {[%emt 0:04:15]} f6 {[%emt 0:05:10]} ({Black should try} 22... exf4 $14 23. Qxf4 Rae8) 23. Kh1 {[%emt 0:04:47]} (23. f5 $16) 23... exf4 $14 {[%emt 0:05:17]} 24. gxf4 {[%emt 0:02:17]} (24. Nd5 $14 Qc5 25. b4 (25. Qxf4 Bxd5 26. exd5 f5 $11) (25. Nxf4 Qe5 $14)) 24... Rae8 {[%emt 0:00:10]} 25. Nd5 {[%emt 0:04:26]} Bxd5 {[%emt 0:06:31]} 26. Qxd5+ {[%emt 0:00:25]} Kh8 {[%emt 0:00:06]} 27. Rd2 {[%emt 0:00:57]} Ne6 {[%emt 0:04:27]} 28. Rf1 {[%emt 0:10:47]} f5 {[%emt 0:02:43]} 29. e5 {[%emt 0:15:11]} dxe5 {[%emt 0:00:27]} 30. Qxe5+ {[%emt 0:00:17]} Ng7 {[%emt 0:00:06]} 31. Rd6 {[%emt 0:03:10]} Qb8 {[%emt 0:02:05]} (31... Qc7 $1 $11 32. Qd4 Rd8) 32. Qd4 {[%emt 0:00:29] White is much more active.} (32. Qc5 $1 $14) 32... Rd8 $132 {[%emt 0:00:57][%mdl 2048] Black is not holding back} 33. Rd1 {[%emt 0:01:32][%cal Rd6d8]} Rxd6 {[%emt 0:00:05]} 34. Qxd6 {[%emt 0:00:07]} Qxd6 {[%emt 0:02:48]} 35. Rxd6 {[%emt 0:00:01][%mdl 4096] Endgame KRB-KRN} Rc8 {[%emt 0:02:06]} 36. Bc6 {[%emt 0:01:24]} Nh5 {[%emt 0:00:18]} 37. Bxb5 {[%emt 0:00:41]} Nxf4 {[%emt 0:00:15] [#]} (37... Rc1+ $11 {remains equal.} 38. Kg2 Rc2+ 39. Kf3 Rxh2) 38. Bc6 $1 $16 {[%emt 0:01:14]} Kg7 $2 {[%emt 0:04:01]} ({Black should play} 38... Nd3 $1 $14) 39. b4 $18 {[%emt 0:00:16][%cal Bb2b4,Bb4b5][%mdl 32] Threatens to win with b5.} Nd3 $2 {[%emt 0:02:11]} (39... Rc7 40. a4 Kf8) 40. Rxd3 {[%emt 0:00:00]} Rxc6 {[%emt 0:00:00] [#] KR-KR} 41. Rb3 $1 {[%emt 0:12:51]} f4 {[%emt 0:06:16]} 42. b5 {[%emt 0:08:47]} Rc1+ {[%emt 0:00:46]} 43. Kg2 {[%emt 0:00:01]} g5 {[%emt 0:00:07]} 44. h3 {[%emt 0:10:09]} h5 {[%emt 0:04:27]} 45. Rb2 $2 {[%emt 0:01:48]} (45. b6 $18 {b7 is the strong threat.} Rc2+ 46. Kf1 Rc1+ 47. Ke2 Rc2+ 48. Kd1) 45... g4 $1 $14 {[%emt 0:00:49]} (45... Rc3 $2 46. b6 Rc8 47. b7 $18) 46. hxg4 {[%emt 0:00:03]} hxg4 {[%emt 0:00:06]} 47. a4 {[%emt 0:01:30] Black must now prevent b6.} f3+ $1 {[%emt 0:01:33]} 48. Kg3 {[%emt 0:00:40]} Rg1+ {[%emt 0:00:13] Weighted Error Value: White=0.29 (precise) /Black=0.22 (precise)} 1/2-1/2

[Event "1st Chessable Sunway Formentera 2022"]
[Site "Formentera Punta Prima"]
[Date "2022.05.04"]
[Round "6"]
[White "Dadashpour, Mohammad Yaser"]
[Black "Al Ibrahim, Abdulrahman"]
[Result "1-0"]
[ECO "B35"]
[WhiteElo "1604"]
[BlackElo "1776"]
[Annotator "NA RC COMBH"]
[PlyCount "73"]
[EventDate "2022.05.05"]
[EventType "swiss"]
[EventCountry "ESP"]
[SourceTitle "playchess.com"]
[Source "ChessBase"]
[SourceQuality "1"]
[TimeControl "40/5400+30:1800+30"]

1. e4 {[%emt 0:00:18]} c5 {[%emt 0:00:06]} 2. Nf3 {[%emt 0:00:07]} g6 {[%emt 0:00:08]} 3. d4 {[%emt 0:01:45]} cxd4 {[%emt 0:00:05]} 4. Nxd4 {[%emt 0:00:02]} Bg7 {[%emt 0:00:10]} 5. Nc3 {[%emt 0:00:31]} Nc6 {[%emt 0:00:06]} 6. Be3 {[%emt 0:00:38]} Nf6 {[%emt 0:00:31]} 7. Bc4 {[%emt 0:01:13]} O-O {[%emt 0:00:07]} 8. Bb3 {[%emt 0:00:22]} Re8 {[%emt 0:00:08]} 9. Nxc6 {[%emt 0:05:11]} dxc6 {[%emt 0:01:19]} 10. h3 {[%emt 0:02:37]} Qa5 {[%emt 0:11:47]} 11. O-O {[%emt 0:02:45]} Nd7 {[%emt 0:03:51]} 12. Bd4 {[%emt 0:07:03]} e5 {[%emt 0:16:33]} 13. Qf3 {[%emt 0:07:33]} Nf6 {[%emt 0:13:52]} 14. Be3 {[%emt 0:02:58]} Be6 {[%emt 0:00:38]} 15. Bg5 {[%emt 0:01:54]} Nd7 {[%emt 0:03:06]} 16. Rad1 {[%emt 0:10:34]} Qc7 {[%emt 0:01:17]} 17. Rd2 {[%emt 0:03:44]} Bxb3 {[%emt 0:13:23]} 18. axb3 {[%emt 0:00:54]} h6 {[%emt 0:00:39]} 19. Rfd1 {[%emt 0:02:24]} Nf8 {[%emt 0:00:27]} 20. Be3 {[%emt 0:06:47]} b6 {[%emt 0:01:37]} 21. b4 {[%emt 0:06:22]} a6 {[%emt 0:04:17]} 22. Na4 {[%emt 0:01:47]} b5 {[%emt 0:01:59]} 23. Nc5 {[%emt 0:01:07]} Re7 {[%emt 0:01:40]} 24. h4 {[%emt 0:04:19]} a5 {[%emt 0:00:34]} 25. c3 {[%emt 0:01:40]} a4 {[%emt 0:04:12]} 26. h5 {[%emt 0:03:11]} Kh7 {[%emt 0:00:33]} 27. Qg4 {[%emt 0:01:22]} Qc8 {[%emt 0:01:20]} 28. Qf3 {[%emt 0:02:05]} Qe8 {[%emt 0:06:35]} 29. g4 {[%emt 0:04:22]} Ne6 {[%emt 0:05:08]} 30. Nxe6 {[%emt 0:06:07]} Rxe6 {[%emt 0:00:06]} 31. g5 {[%emt 0:00:13]} gxh5 {[%emt 0:01:04]} 32. Rd7 {[%emt 0:01:57]} Kg8 {[%emt 0:05:47]} 33. Qf5 {[%emt 0:02:52]} Rg6 {[%emt 0:02:34]} 34. Rc7 {[%emt 0:03:17]} hxg5 {[%emt 0:00:19]} 35. Rdd7 {[%emt 0:01:22]} Rf6 {[%emt 0:00:13]} 36. Qh3 {[%emt 0:01:56]} Rd8 {[%emt 0:00:10]} 37. Rxd8 {[%emt 0:00:39]} 1-0